fUSD/lending_fUSD_20250123
["ID","MTS","AMOUNT","RATE_DAILY","PERIOD"]
[350098108,1737624657024,-605.74,0.00019178,2]
[350098109,1737624657034,-1558.9,0.00019178,2]
[350098110,1737624657043,-500.0,0.00019178,2]
[350098111,1737624657053,-610.134624,0.00019178,2]
[350098112,1737624657062,-1054.42,0.00019178,2]
[350098113,1737624657072,-693.75,0.00019178,2]
[350098114,1737624657081,-1409.53,0.00019178,2]
[350098115,1737624657090,-682.67,0.00019178,2]
[350098116,1737624657099,-5800.0,0.00019183,2]
[350098117,1737624657108,-5800.0,0.00019192,2]
[350098118,1737624657118,-150.0,0.00019196,2]
[350098119,1737624657127,-500.0,0.00019199,2]
[350098120,1737624657136,-13251.30126201,0.00019199,2]
[350098121,1737624657146,-25404.0,0.000192,2]
[350098122,1737624657155,-1450.39,0.000192,2]
[350098123,1737624657164,-5800.0,0.000192,2]
[350098124,1737624657173,-199.46775067,0.000192,2]
[350098125,1737624657183,-2390.99807565,0.000192,2]
[350098126,1737624657192,-163.12455489,0.000192,2]
[350098127,1737624657201,-500.0,0.00019201,2]
[350098128,1737624657211,-500.0,0.00019201,2]
[350098129,1737624657220,-600.94,0.00019201,2]
[350098130,1737624657229,-500.0,0.00019201,2]
[350098131,1737624657239,-500.0,0.00019201,2]
[350098132,1737624657248,-500.0,0.00019201,2]
[350098133,1737624657257,-500.0,0.00019201,2]
[350098134,1737624657267,-500.0,0.00019201,2]
[350098135,1737624657276,-500.0,0.00019201,2]
[350098136,1737624657285,-500.0,0.00019201,2]
[350098137,1737624657294,-422.728235,0.00019201,2]
[350098138,1737624657303,-500.0,0.00019201,2]
[350098139,1737624657312,-500.0,0.00019201,2]
[350098140,1737624657321,-384.875128,0.00019201,2]
[350098141,1737624657330,-500.0,0.00019201,2]
[350098142,1737624657339,-500.0,0.00019201,2]
[350098143,1737624657348,-500.0,0.00019201,2]
[350098144,1737624657358,-500.0,0.00019201,2]
[350098145,1737624657367,-539.06,0.00019201,2]
[350098146,1737624657376,-500.0,0.00019201,2]
[350098147,1737624657386,-500.0,0.00019201,2]
[350098148,1737624657395,-500.0,0.00019201,2]
[350098149,1737624657405,-500.0,0.00019201,2]
[350098150,1737624657415,-500.0,0.00019201,2]
[350098151,1737624657424,-500.0,0.00019201,2]
[350098152,1737624657434,-742.19,0.00019201,2]
[350098153,1737624657446,-500.0,0.00019201,2]
[350098154,1737624657455,-500.0,0.00019201,2]
[350098155,1737624657465,-1105.57,0.00019201,2]
[350098156,1737624657475,-845.55,0.00019201,2]
[350098157,1737624657484,-500.0,0.00019201,2]
[350098158,1737624657494,-1151.53,0.00019201,2]
[350098159,1737624657503,-527.76,0.00019201,2]
[350098160,1737624657515,-500.0,0.00019201,2]
[350098161,1737624657524,-500.0,0.00019201,2]
[350098162,1737624657533,-903.96,0.00019201,2]
[350098163,1737624657544,-500.0,0.00019201,2]
[350098164,1737624657554,-1690.38,0.00019201,2]
[350098165,1737624657564,-980.2,0.00019201,2]
[350098166,1737624657573,-942.63,0.00019201,2]
[350098167,1737624657582,-703.16,0.00019201,2]
[350098168,1737624657591,-500.0,0.00019201,2]
[350098169,1737624657601,-500.0,0.00019201,2]
[350098170,1737624657610,-1023.81,0.00019201,2]
[350098171,1737624657620,-500.0,0.00019201,2]
[350098172,1737624657629,-514.08,0.00019201,2]
[350098173,1737624657639,-662.57,0.00019201,2]
[350098174,1737624657648,-653.54,0.00019201,2]
[350098175,1737624657657,-709.64,0.00019201,2]
[350098176,1737624657667,-646.15,0.00019201,2]
[350098177,1737624657676,-500.0,0.00019201,2]
[350098178,1737624657686,-500.0,0.00019201,2]
[350098179,1737624657695,-1307.61,0.00019201,2]
[350098180,1737624657705,-1454.69,0.00019201,2]
[350098181,1737624657714,-1061.27,0.00019201,2]
[350098182,1737624657724,-1164.52,0.00019201,2]
[350098183,1737624657734,-2551.33,0.00019201,2]
[350098184,1737624657744,-1036.053678,0.00019201,2]
[350098185,1737624657754,-680.12,0.00019201,2]
[350098186,1737624657764,-1036.053678,0.00019201,2]
[350098187,1737624657773,-500.0,0.00019201,2]
[350098188,1737624657782,-500.0,0.00019201,2]
[350098189,1737624657792,-1189.93,0.00019201,2]
[350098190,1737624657802,-500.0,0.00019201,2]
[350098191,1737624657811,-1734.13,0.00019201,2]
[350098192,1737624657820,-1398.52,0.00019201,2]
[350098193,1737624657830,-865.19,0.00019201,2]
[350098194,1737624657839,-437.3222131,0.00019201,2]
[350098195,1737624657848,-4444.71,0.00019201,2]
[350098196,1737624657858,-539.62,0.00019201,2]
[350098197,1737624657867,-681.37,0.00019201,2]
[350098198,1737624657877,-1124.34,0.00019201,2]
[350098199,1737624657887,-1532.83,0.00019201,2]
[350098200,1737624657897,-500.0,0.00019201,2]
[350098201,1737624657906,-751.76,0.00019201,2]
[350098202,1737624657916,-500.0,0.00019201,2]
[350098203,1737624657926,-500.0,0.00019201,2]
[350098204,1737624657935,-555.11,0.00019201,2]
[350098205,1737624657947,-567.49,0.00019201,2]
[350098206,1737624657959,-541.15,0.00019201,2]
[350098207,1737624657969,-500.0,0.00019201,2]
[350098208,1737624657979,-780.24,0.00019201,2]
[350098209,1737624657989,-853.25,0.00019201,2]
[350098210,1737624657999,-150.0,0.00019223,2]
[350098211,1737624658009,-176.4,0.00019242,30]
[350098212,1737624658018,-151.0,0.00019273,2]
[350098213,1737624658027,-282.00699,0.00019287,2]
[350098214,1737624658036,-356.000699,0.00019287,2]
[350098215,1737624658046,-356.000699,0.00019287,2]
[350098216,1737624658055,-5311.5649502,0.00019287,2]
[350098217,1737624658064,-4830.8487667,0.00019287,2]
[350098218,1737624658072,-4350.1325832,0.00019287,2]
[350098219,1737624658082,-10499.4603029,0.00019287,2]
[350098220,1737624658091,-9549.2204898,0.00019287,2]
[350098221,1737624658100,-8598.9806767,0.00019287,2]
[350098222,1737624658109,-156.20909881,0.0001929,2]
[350098223,1737624658120,-64609.35513585,0.00019299,2]
[350098224,1737624658128,-60320.64992851,0.00019299,10]
[350098225,1737624658137,-1036.053678,0.00019299,2]
[350098226,1737624658147,-1036.053678,0.00019299,2]
[350098227,1737624658156,-479.69461948,0.000193,2]
[350098228,1737624658165,-2299085.6003855,0.000193,3]
[350098229,1737624658174,-1179731.2690913,0.000193,4]
[350098230,1737624658371,-151.0,0.00017557,2]
[350098231,1737624658381,-549.05692564,0.000193,4]
[350098232,1737624658392,-47056.62220475,0.000193,4]
[350098233,1737624658403,-845.3212334,0.000193,4]
[350098234,1737624658414,-323.8369,0.000193,4]
[350098235,1737624658425,-262.81949186,0.000193,4]
[350098236,1737624658564,-453.588412,0.00017434,2]
[350098237,1737624658576,-16447.41801223,0.00017434,2]
[350098238,1737624658591,-376.11990529,0.00017434,2]
[350098239,1737624658610,-14342.21836858,0.00017434,2]
[350098240,1737624658630,-305.50005067,0.00017434,2]
[350098241,1737624658641,-350.6800001,0.00017434,2]
[350098242,1737624658803,-910.65,0.00017434,2]
[350098243,1737624658823,-1300.50714215,0.00017434,2]
[350098244,1737624658930,-230.01152059,0.00017434,2]
[350098245,1737624658939,-149.98842691,0.00017831,2]
[350098246,1737624658951,-1.01157309,0.00017831,2]
[350098247,1737624658960,-151.0,0.00018181,2]
[350098248,1737624658969,-1106.0,0.00018511,2]
[350098249,1737624658978,-151.0,0.00018529,2]
[350098250,1737624658988,-500.0,0.00018653,2]
[350098251,1737624658997,-80.38891989,0.00018904,2]
[350098252,1737624659214,-151.0,0.00016735,2]
[350098253,1737624659224,-70.61108011,0.00018904,2]
[350098254,1737624659233,-500.0,0.00018927,2]
[350098255,1737624659242,-175.101638,0.00019178,2]
[350098256,1737624659251,-500.0,0.00019201,2]
[350098257,1737624659260,-73951.79530189,0.000193,4]
[350098258,1737624659271,-10249.88117645,0.000193,4]
[350098259,1737624659282,-511.0,0.000193,4]
[350098260,1737624659292,-389.46500078,0.000193,4]
[350098261,1737624659303,-1627.32924162,0.000193,4]
[350098262,1737624659314,-3150.44351199,0.000193,4]
[350098263,1737624659325,-588.94,0.000193,4]
[350098264,1737624659335,-28815.82135084,0.000193,4]
[350098265,1737624659346,-6382.55891473,0.000193,4]
[350098283,1737625118154,180.09,0.00016658,30]
[350098285,1737625289651,-264.26,0.00010137,2]
[350098286,1737625289677,-500.0,0.00011999,2]
[350098287,1737625289706,-500.0,0.00012136,2]
[350098288,1737625289747,-557.81370675,0.00012179,2]
[350098289,1737625289773,-245.73884115,0.00012229,2]
[350098290,1737625289798,-500.0,0.00012273,2]
[350098291,1737625289823,-170.5,0.00012329,2]
[350098292,1737625289848,-500.0,0.0001241,2]
[350098293,1737625289872,-500.0,0.00012547,2]
[350098294,1737625289904,-500.0,0.00012684,2]
[350098295,1737625289934,-396.8669387,0.00012821,2]
[350098296,1737625289959,-1284.84,0.00013654,2]
[350098297,1737625289986,-245.73884115,0.00014284,2]
[350098298,1737625290010,-200.0,0.00015262,2]
[350098299,1737625290039,-250.0,0.00015275,2]
[350098300,1737625290064,-671.37,0.00015294,2]
[350098301,1737625290088,-12712.87167225,0.00015334,2]
[350098302,1737625354961,-4000.0,0.00015334,2]
[350098303,1737625419020,-245.73884115,0.00015284,2]
[350098304,1737625419045,-754.26115885,0.00015334,2]
[350098369,1737625831717,-394.26,0.00010137,2]
[350098370,1737625831727,-23.41500219,0.00012329,2]
[350098371,1737625831746,-147.08499781,0.00012329,2]
[350098372,1737625831755,-350.51503116,0.000146,3]
[350098373,1737625831795,-5203.48496884,0.000146,3]
[350098374,1737625831804,-5558.0,0.000149,5]
[350098375,1737625831812,-150.0,0.00014999,2]
[350098376,1737625831821,-300.0,0.00014999,2]
[350098377,1737625831830,-550.0,0.00015,2]
[350098378,1737625831839,-78323.0,0.00015,2]
[350098379,1737625831852,-1553.50544069,0.00015334,2]
[350098380,1737625831862,-8884.07832775,0.00015334,2]
[350098381,1737625831872,-2871.59839861,0.00015384,2]
[350098382,1737625831881,-250.0,0.00015485,2]
[350098383,1737625831891,-472.2,0.00015525,2]
[350098384,1737625831901,-250.0,0.00015539,2]
[350098385,1737625831910,-346.65650711,0.000156,2]
[350098386,1737625831931,-653.34349289,0.000156,2]
[350098387,1737625831940,-696.65650711,0.00015614,2]
[350098388,1737625831952,-1303.34349289,0.00015614,2]
[350098389,1737625831963,-500.0,0.0001562,2]
[350098390,1737625831973,-298.29,0.0001562,2]
[350098391,1737625831983,-489.8006886,0.00015627,2]
[350098392,1737625831994,-175.32638408,0.00015627,2]
[350098393,1737625832005,-1076.12376471,0.00015628,2]
[350098394,1737625832024,-22823.87623529,0.00015628,2]
[350098396,1737625832033,-886.06,0.00015642,2]
[350098398,1737625832043,-167.68,0.00015697,2]
[350098400,1737625832052,-150.0,0.00015699,2]
[350098402,1737625832062,-1048.39,0.00015735,2]
[350098404,1737625832071,-216.67,0.00015764,2]
[350098405,1737625832082,-3888.96,0.00015819,2]
[350098408,1737625832091,-438.32,0.00015839,2]
[350098409,1737625832102,-283.44420663,0.00015848,2]
[350098412,1737625832112,-284.92106654,0.000159,2]
[350098413,1737625832122,-1284.84,0.00015918,2]
[350098416,1737625832132,-500.0,0.00016,2]
[350098417,1737625832141,-2265.82361591,0.00016,2]
[350098419,1737625832150,-284.92106637,0.00016107,2]
[350098421,1737625832159,-150.0,0.00016124,2]
[350098423,1737625832168,-153.6,0.00016161,2]
[350098425,1737625832178,-691.49,0.00016238,2]
[350098427,1737625832188,-284.92106637,0.00016314,2]
[350098429,1737625832198,-5216.828,0.00016411,2]
[350098431,1737625832207,-420.0,0.00016416,2]
[350098434,1737625832216,-500.0,0.00016434,2]
[350098435,1737625832225,-500.0,0.00016434,2]
[350098437,1737625832235,-500.0,0.00016438,2]
[350098439,1737625832244,-500.0,0.00016438,2]
[350098441,1737625832253,-500.0,0.00016438,2]
[350098443,1737625832262,-600.31,0.00016438,2]
[350098445,1737625832271,-500.0,0.00016438,2]
[350098447,1737625832280,-500.0,0.00016438,2]
[350098449,1737625832288,-500.0,0.00016438,2]
[350098451,1737625832298,-500.0,0.00016438,2]
[350098454,1737625832307,-500.0,0.00016438,2]
[350098456,1737625832316,-500.0,0.00016438,2]
[350098460,1737625832325,-500.0,0.00016438,2]
[350098463,1737625832335,-289.28567345,0.00016438,2]
[350098465,1737625832346,-500.0,0.00016438,2]
[350098468,1737625832355,-284.92106637,0.00016521,2]
[350098472,1737625832365,-500.0,0.00016534,2]
[350098476,1737625832375,-500.0,0.00016534,2]
[350098479,1737625832384,-2535.85807264,0.00016612,2]
[350098480,1737625832394,-500.0,0.00016634,2]
[350098482,1737625832403,-500.0,0.00016634,2]
[350098484,1737625832412,-500.0,0.00016712,2]
[350098486,1737625832421,-500.0,0.00016712,2]
[350098488,1737625832430,-600.31,0.00016712,2]
[350098490,1737625832439,-500.0,0.00016712,2]
[350098491,1737625832449,-500.0,0.00016712,2]
[350098492,1737625832459,-500.0,0.00016712,2]
[350098493,1737625832468,-500.0,0.00016712,2]
[350098494,1737625832477,-500.0,0.00016712,2]
[350098495,1737625832487,-500.0,0.00016712,2]
[350098496,1737625832497,-500.0,0.00016712,2]
[350098497,1737625832508,-284.92106637,0.00016728,2]
[350098498,1737625832518,-500.0,0.00016734,2]
[350098499,1737625832528,-500.0,0.00016734,2]
[350098500,1737625832539,-264.26,0.00016813,2]
[350098501,1737625832549,-394.26,0.00016813,2]
[350098502,1737625832560,-500.0,0.00016834,2]
[350098503,1737625832570,-500.0,0.00016834,2]
[350098504,1737625832579,-3532.91386993,0.00016886,2]
[350098507,1737625837514,-2045.86376,0.00014999,2]
[350098508,1737625837569,-277.65345548,0.00014999,2]
[350098509,1737625837581,-1919.21076,0.00014999,2]
[350098510,1737625837593,-895.3249,0.00014999,2]
[350098511,1737625837625,-5120.15136044,0.00014999,2]
[350098512,1737625837635,-14886.50693007,0.00016886,2]
[350098513,1737625837645,-2535.85807259,0.000169,2]
[350098514,1737625837655,-500.0,0.00016934,2]
[350098515,1737625837664,-500.0,0.00016934,2]
[350098516,1737625837674,-284.92106637,0.00016934,2]
[350098517,1737625837683,-600.31,0.00016986,2]
[350098518,1737625837693,-512.45554696,0.00016986,2]
[350098519,1737625837703,-230.07260138,0.00016986,2]
[350098520,1737625837713,-500.0,0.00016986,2]
[350098521,1737625837723,-500.0,0.00016986,2]
[350098522,1737625837732,-500.0,0.00016986,2]
[350098523,1737625837742,-500.0,0.00016986,2]
[350098524,1737625837752,-500.0,0.00016986,2]
[350098525,1737625837762,-500.0,0.00017,2]
[350098526,1737625837771,-600.0,0.00017,2]
[350098527,1737625837781,-1557.0,0.00017,2]
[350098528,1737625837791,-500.0,0.00017034,2]
[350098529,1737625837801,-500.0,0.00017034,2]
[350098530,1737625837810,-500.0,0.00017134,2]
[350098531,1737625837820,-500.0,0.00017134,2]
[350098532,1737625837830,-284.92106637,0.00017141,2]
[350098533,1737625837840,-2535.85807259,0.00017187,2]
[350098534,1737625837849,-500.0,0.00017234,2]
[350098535,1737625837863,-500.0,0.00017234,2]
[350098536,1737625837872,-830.2,0.00017249,2]
[350098537,1737625837882,-500.0,0.00017258,2]
[350098538,1737625837891,-500.0,0.00017258,2]
[350098539,1737625837901,-500.0,0.00017258,2]
[350098540,1737625837915,-622.05,0.00017258,2]
[350098541,1737625837925,-924.92,0.00017258,2]
[350098542,1737625837935,-597.68,0.00017258,2]
[350098543,1737625837944,-962.27,0.00017258,2]
[350098544,1737625837955,-500.0,0.00017258,2]
[350098545,1737625837965,-725.43,0.00017258,2]
[350098546,1737625837974,-970.59,0.00017258,2]
[350098547,1737625837984,-517.97,0.00017258,2]
[350098548,1737625837994,-500.0,0.00017258,2]
[350098549,1737625838005,-500.0,0.00017258,2]
[350098550,1737625838015,-1092.85,0.00017258,2]
[350098551,1737625838025,-1428.99,0.00017258,2]
[350098552,1737625838035,-500.0,0.00017258,2]
[350098553,1737625838044,-1233.33,0.00017258,2]
[350098554,1737625838054,-500.0,0.00017258,2]
[350098555,1737625838064,-500.0,0.00017258,2]
[350098556,1737625838073,-455.86528323,0.00017258,2]
[350098557,1737625838085,-151.16471677,0.00017258,2]
[350098558,1737625838095,-500.0,0.00017258,2]
[350098559,1737625838105,-500.0,0.00017258,2]
[350098560,1737625838116,-500.0,0.00017258,2]
[350098561,1737625838126,-555.26,0.00017258,2]
[350098562,1737625838135,-195.28568416,0.00017258,2]
[350098563,1737625838147,-304.71431584,0.00017258,2]
[350098564,1737625838157,-500.0,0.00017258,2]
[350098565,1737625838166,-245.28567416,0.00017258,2]
[350098566,1737625838178,-254.71432584,0.00017258,2]
[350098567,1737625838187,-500.0,0.00017259,2]
[350098568,1737625838197,-500.0,0.00017259,2]
[350098569,1737625838206,-500.0,0.00017259,2]
[350098570,1737625838216,-500.0,0.00017259,2]
[350098571,1737625838225,-500.0,0.00017259,2]
[350098572,1737625838235,-500.0,0.00017259,2]
[350098573,1737625838244,-500.0,0.00017259,2]
[350098574,1737625838254,-500.0,0.00017259,2]
[350098575,1737625838264,-402.47031007,0.00017259,2]
[350098576,1737625838273,-500.0,0.00017259,2]
[350098577,1737625838282,-500.0,0.00017259,2]
[350098578,1737625838292,-500.0,0.00017259,2]
[350098579,1737625838301,-500.0,0.00017259,2]
[350098580,1737625838310,-500.0,0.00017259,2]
[350098581,1737625838319,-500.0,0.00017259,2]
[350098582,1737625838329,-500.0,0.00017259,2]
[350098583,1737625838338,-500.0,0.00017259,2]
[350098584,1737625838346,-500.0,0.00017259,2]
[350098585,1737625838358,-500.0,0.00017259,2]
[350098586,1737625838368,-500.0,0.00017259,2]
[350098587,1737625838378,-500.0,0.00017259,2]
[350098588,1737625838387,-500.0,0.00017259,2]
[350098589,1737625838397,-500.0,0.00017259,2]
[350098590,1737625838407,-500.0,0.00017259,2]
[350098591,1737625838416,-500.0,0.00017259,2]
[350098592,1737625838425,-500.0,0.00017259,2]
[350098593,1737625838434,-500.0,0.00017259,2]
[350098594,1737625838444,-500.0,0.00017259,2]
[350098595,1737625838453,-500.0,0.00017259,2]
[350098596,1737625838462,-500.0,0.00017259,2]
[350098597,1737625838471,-634.16,0.00017259,2]
[350098598,1737625838480,-911.63,0.00017259,2]
[350098599,1737625838490,-500.0,0.00017259,2]
[350098600,1737625838499,-500.0,0.00017259,2]
[350098601,1737625838508,-500.0,0.00017259,2]
[350098602,1737625838518,-500.0,0.00017259,2]
[350098603,1737625838527,-774.13,0.00017259,2]
[350098604,1737625838537,-500.0,0.00017259,2]
[350098605,1737625838546,-1479.08,0.00017259,2]
[350098606,1737625838555,-1507.03,0.00017259,2]
[350098607,1737625838565,-615.27,0.00017259,2]
[350098608,1737625838574,-500.0,0.00017259,2]
[350098609,1737625838584,-914.56,0.00017259,2]
[350098610,1737625838593,-500.0,0.00017259,2]
[350098611,1737625838604,-607.36,0.00017259,2]
[350098612,1737625838615,-592.31,0.00017259,2]
[350098613,1737625838624,-500.0,0.00017259,2]
[350098614,1737625838634,-500.0,0.00017259,2]
[350098615,1737625838643,-2338.72,0.00017259,2]
[350098616,1737625838653,-500.0,0.00017259,2]
[350098617,1737625838663,-1394.08,0.00017259,2]
[350098618,1737625838672,-500.0,0.00017259,2]
[350098619,1737625838682,-654.41,0.00017259,2]
[350098620,1737625838691,-500.0,0.00017259,2]
[350098621,1737625838700,-500.0,0.00017259,2]
[350098622,1737625838709,-500.0,0.00017259,2]
[350098623,1737625838719,-829.14,0.00017259,2]
[350098624,1737625838727,-500.0,0.00017259,2]
[350098625,1737625838737,-500.0,0.00017259,2]
[350098626,1737625838746,-1077.49,0.00017259,2]
[350098627,1737625838755,-4259.51,0.00017259,2]
[350098628,1737625838764,-500.0,0.00017259,2]
[350098629,1737625838773,-500.0,0.00017259,2]
[350098630,1737625838783,-500.0,0.00017259,2]
[350098631,1737625838793,-500.0,0.00017259,2]
[350098632,1737625838801,-500.0,0.00017259,2]
[350098633,1737625838812,-500.0,0.00017259,2]
[350098634,1737625838821,-500.0,0.00017259,2]
[350098635,1737625838831,-256.35046606,0.00017259,2]
[350098636,1737625838839,-531.98,0.00017259,2]
[350098637,1737625838849,-543.85,0.00017259,2]
[350098638,1737625838860,-500.0,0.00017259,2]
[350098639,1737625838869,-500.0,0.00017259,2]
[350098640,1737625838878,-817.7,0.00017259,2]
[350098641,1737625838888,-500.0,0.00017259,2]
[350098642,1737625838897,-883.51,0.00017259,2]
[350098643,1737625838907,-500.0,0.00017259,2]
[350098644,1737625838917,-1485.23,0.00017259,2]
[350098645,1737625838930,-500.0,0.00017259,2]
[350098646,1737625838939,-600.31,0.0001726,2]
[350098647,1737625838948,-500.0,0.0001726,2]
[350098648,1737625838957,-500.0,0.0001726,2]
[350098649,1737625838969,-500.0,0.0001726,2]
[350098650,1737625838978,-500.0,0.0001726,2]
[350098651,1737625838988,-321.10263025,0.0001726,2]
[350098652,1737625838998,-500.0,0.00017334,2]
[350098653,1737625839008,-500.0,0.00017334,2]
[350098654,1737625839018,-284.92106637,0.00017348,2]
[350098655,1737625839027,-172.7334495,0.00017432,2]
[350098656,1737625839037,-4820.30150347,0.00017433,2]
[350098657,1737625839046,-500.0,0.00017434,2]
[350098658,1737625839056,-500.0,0.00017434,2]
[350098659,1737625839065,-2535.85807259,0.00017475,2]
[350098660,1737625839075,-500.0,0.00017532,2]
[350098661,1737625839084,-500.0,0.00017532,2]
[350098662,1737625839093,-500.0,0.00017532,2]
[350098663,1737625839103,-622.05,0.00017532,2]
[350098664,1737625839114,-924.92,0.00017532,2]
[350098665,1737625839124,-597.68,0.00017532,2]
[350098666,1737625839134,-962.27,0.00017532,2]
[350098667,1737625839144,-500.0,0.00017532,2]
[350098668,1737625839154,-725.43,0.00017532,2]
[350098669,1737625839164,-970.59,0.00017532,2]
[350098670,1737625839173,-517.97,0.00017532,2]
[350098671,1737625839183,-500.0,0.00017532,2]
[350098672,1737625839192,-500.0,0.00017532,2]
[350098673,1737625839202,-1092.85,0.00017532,2]
[350098674,1737625839212,-1428.99,0.00017532,2]
[350098675,1737625839221,-500.0,0.00017532,2]
[350098676,1737625839231,-1233.33,0.00017532,2]
[350098677,1737625839240,-500.0,0.00017532,2]
[350098678,1737625839249,-607.03,0.00017532,2]
[350098679,1737625839259,-237.65673924,0.00017532,2]
[350098680,1737625839268,-500.0,0.00017532,2]
[350098681,1737625839278,-500.0,0.00017532,2]
[350098682,1737625839287,-555.26,0.00017532,2]
[350098683,1737625839296,-500.0,0.00017532,2]
[350098684,1737625839306,-500.0,0.00017532,2]
[350098685,1737625839315,-500.0,0.00017532,2]
[350098686,1737625839324,-500.0,0.00017533,2]
[350098687,1737625839334,-500.0,0.00017533,2]
[350098688,1737625839343,-500.0,0.00017533,2]
[350098689,1737625839354,-500.0,0.00017533,2]
[350098690,1737625839364,-500.0,0.00017533,2]
[350098691,1737625839374,-500.0,0.00017533,2]
[350098692,1737625839383,-500.0,0.00017533,2]
[350098693,1737625839393,-500.0,0.00017533,2]
[350098694,1737625839402,-500.0,0.00017533,2]
[350098695,1737625839411,-500.0,0.00017533,2]
[350098696,1737625839420,-500.0,0.00017533,2]
[350098697,1737625839429,-500.0,0.00017533,2]
[350098698,1737625839439,-500.0,0.00017533,2]
[350098699,1737625839448,-500.0,0.00017533,2]
[350098700,1737625839457,-500.0,0.00017533,2]
[350098701,1737625839466,-500.0,0.00017533,2]
[350098702,1737625839475,-500.0,0.00017533,2]
[350098704,1737625839484,-500.0,0.00017533,2]
[350098705,1737625839493,-500.0,0.00017533,2]
[350098706,1737625839502,-500.0,0.00017533,2]
[350098707,1737625839511,-500.0,0.00017533,2]
[350098708,1737625839521,-500.0,0.00017533,2]
[350098709,1737625839530,-500.0,0.00017533,2]
[350098711,1737625839539,-500.0,0.00017533,2]
[350098713,1737625839548,-500.0,0.00017533,2]
[350098714,1737625839557,-500.0,0.00017533,2]
[350098715,1737625839567,-500.0,0.00017533,2]
[350098716,1737625839575,-634.16,0.00017533,2]
[350098717,1737625839584,-790.82,0.00017533,2]
[350098718,1737625839593,-911.63,0.00017533,2]
[350098719,1737625839602,-500.0,0.00017533,2]
[350098720,1737625839614,-500.0,0.00017533,2]
[350098721,1737625839623,-500.0,0.00017533,2]
[350098722,1737625839632,-785.53,0.00017533,2]
[350098723,1737625839642,-500.0,0.00017533,2]
[350098724,1737625839651,-563.637648,0.00017533,2]
[350098725,1737625839660,-500.0,0.00017533,2]
[350098726,1737625839669,-774.13,0.00017533,2]
[350098727,1737625839678,-500.0,0.00017533,2]
[350098728,1737625839687,-816.84,0.00017533,2]
[350098729,1737625839697,-500.0,0.00017533,2]
[350098730,1737625839706,-554.65893026,0.00017533,2]
[350098731,1737625839715,-538.82518,0.00017533,2]
[350098732,1737625839724,-1479.08,0.00017533,2]
[350098733,1737625839733,-1507.03,0.00017533,2]
[350098734,1737625839743,-571.85,0.00017533,2]
[350098735,1737625839752,-500.0,0.00017533,2]
[350098736,1737625839761,-500.0,0.00017533,2]
[350098737,1737625839770,-615.27,0.00017533,2]
[350098738,1737625839779,-500.0,0.00017533,2]
[350098739,1737625839788,-1144.15,0.00017533,2]
[350098740,1737625839798,-620.93,0.00017533,2]
[350098741,1737625839807,-914.56,0.00017533,2]
[350098742,1737625839816,-972.83,0.00017533,2]
[350098743,1737625839825,-169.091294,0.00017533,2]
[350098744,1737625839834,-500.0,0.00017533,2]
[350098745,1737625839843,-500.0,0.00017533,2]
[350098746,1737625839852,-607.36,0.00017533,2]